[Event "Live Chess"]
[Site "Chess.com"]
[Date "2023.05.21"]
[Round "-"]
[White "Driftboard"]
[Black "McSlash1"]
[Result "0-1"]
[WhiteElo "861"]
[BlackElo "2017"]
[TimeControl "300"]
[EndTime "3:48:17 PDT"]
[Termination "McSlash1 won by checkmate"]

1. e4 {[%clk 0:04:58.1]} 1... c5 {[%clk 0:04:58.6]} 2. Nf3 {[%clk 0:04:56.8]}
2... d6 {[%clk 0:04:57.8]} 3. Nc3 {[%clk 0:04:53.6]} 3... Nf6 {[%clk 0:04:57.1]}
4. Bc4 {[%clk 0:04:51.6]} 4... Nc6 {[%clk 0:04:56.1]} 5. O-O {[%clk 0:04:50.1]}
5... g6 {[%clk 0:04:55.6]} 6. h3 {[%clk 0:04:48.4]} 6... Bg7 {[%clk 0:04:55.2]}
7. d3 {[%clk 0:04:46.6]} 7... O-O {[%clk 0:04:54.7]} 8. Bg5 {[%clk 0:04:43.5]}
8... Nd7 {[%clk 0:04:54]} 9. Nd5 {[%clk 0:04:39.3]} 9... h6 {[%clk 0:04:50]} 10.
Be3 {[%clk 0:04:25.1]} 10... Nde5 {[%clk 0:04:48]} 11. Nxe5 {[%clk 0:04:23.2]}
11... Nxe5 {[%clk 0:04:47.9]} 12. Bb3 {[%clk 0:04:18.1]} 12... e6 {[%clk
0:04:44.9]} 13. Nf4 {[%clk 0:04:15.2]} 13... Bd7 {[%clk 0:04:43]} 14. d4 {[%clk
0:04:12.6]} 14... cxd4 {[%clk 0:04:40.6]} 15. Bxd4 {[%clk 0:04:10.5]} 15... Rc8
{[%clk 0:04:34.4]} 16. c3 {[%clk 0:04:07]} 16... Qe7 {[%clk 0:04:32.5]} 17. Be3
{[%clk 0:04:03.3]} 17... Rfd8 {[%clk 0:04:29.9]} 18. Ne2 {[%clk 0:04:01.8]}
18... Bc6 {[%clk 0:04:25.5]} 19. f3 {[%clk 0:03:58.8]} 19... a6 {[%clk
0:04:23.8]} 20. Bd4 {[%clk 0:03:56.3]} 20... a5 {[%clk 0:04:13.9]} 21. Bxe5
{[%clk 0:03:55.5]} 21... Bxe5 {[%clk 0:04:11.1]} 22. Qc2 {[%clk 0:03:51.3]}
22... b5 {[%clk 0:04:05.5]} 23. f4 {[%clk 0:03:48.7]} 23... Bg7 {[%clk
0:04:04.1]} 24. a4 {[%clk 0:03:41.4]} 24... b4 {[%clk 0:04:03.4]} 25. cxb4
{[%clk 0:03:40]} 25... axb4 {[%clk 0:04:01]} 26. f5 {[%clk 0:03:35.9]} 26...
Bxa4 {[%clk 0:03:56.8]} 27. Rxa4 {[%clk 0:03:29.4]} 27... Rxc2 {[%clk
0:03:54.7]} 28. Bxc2 {[%clk 0:03:26.8]} 28... exf5 {[%clk 0:03:51.8]} 29. exf5
{[%clk 0:03:23.4]} 29... Qxe2 {[%clk 0:03:51.2]} 30. Rf2 {[%clk 0:03:20]} 30...
Bd4 {[%clk 0:03:50.4]} 31. Kh2 {[%clk 0:03:10.8]} 31... Qxf2 {[%clk 0:03:48.5]}
32. Be4 {[%clk 0:03:08.3]} 32... Be5+ {[%clk 0:03:46.1]} 33. Kh1 {[%clk
0:03:06]} 33... Qf1# {[%clk 0:03:45.3]} 0-1

[Event "Live Chess"]
[Site "Chess.com"]
[Date "2023.05.21"]
[Round "-"]
[White "Mugzwang"]
[Black "Dhaydon19"]
[Result "0-1"]
[WhiteElo "1566"]
[BlackElo "2697"]
[TimeControl "300"]
[EndTime "3:48:34 PDT"]
[Termination "Dhaydon19 won by resignation"]

1. Nf3 {[%clk 0:04:56.7]} 1... c6 {[%clk 0:04:59]} 2. g3 {[%clk 0:04:51.7]} 2...
d5 {[%clk 0:04:58.4]} 3. Bg2 {[%clk 0:04:51.3]} 3... Nf6 {[%clk 0:04:57.1]} 4.
d4 {[%clk 0:04:50.2]} 4... g6 {[%clk 0:04:56.3]} 5. O-O {[%clk 0:04:49.8]} 5...
Bg7 {[%clk 0:04:55.8]} 6. c3 {[%clk 0:04:46.3]} 6... O-O {[%clk 0:04:55.4]} 7.
Bg5 {[%clk 0:04:38.4]} 7... Nbd7 {[%clk 0:04:53.5]} 8. Qd2 {[%clk 0:04:37.1]}
8... Re8 {[%clk 0:04:52.8]} 9. Bh6 {[%clk 0:04:35.7]} 9... Bh8 {[%clk
0:04:51.7]} 10. h3 {[%clk 0:04:26.3]} 10... e5 {[%clk 0:04:50.2]} 11. dxe5
{[%clk 0:04:24.5]} 11... Ne4 {[%clk 0:04:48.8]} 12. Qc2 {[%clk 0:04:13.5]} 12...
Nxe5 {[%clk 0:04:46.8]} 13. Nxe5 {[%clk 0:04:10.6]} 13... Rxe5 {[%clk
0:04:45.8]} 14. Nd2 {[%clk 0:04:03.3]} 14... Nxd2 {[%clk 0:04:36.1]} 15. Qxd2
{[%clk 0:04:01.9]} 15... Bf6 {[%clk 0:04:32.5]} 16. Bf4 {[%clk 0:03:56.7]} 16...
Re8 {[%clk 0:04:30.3]} 17. Rfe1 {[%clk 0:03:46.4]} 17... Bf5 {[%clk 0:04:28.9]}
18. Kh2 {[%clk 0:03:35]} 18... h5 {[%clk 0:04:26.9]} 19. h4 {[%clk 0:03:26.7]}
19... Qb6 {[%clk 0:04:23.6]} 20. Rab1 {[%clk 0:03:17.8]} 20... Qxf2 {[%clk
0:04:20.6]} 21. e4 {[%clk 0:02:29.8]} 21... Qxd2 {[%clk 0:04:18.7]} 22. Bxd2
{[%clk 0:02:28.2]} 22... dxe4 {[%clk 0:04:17.5]} 23. Be3 {[%clk 0:02:22.1]}
23... b6 {[%clk 0:04:16.2]} 24. Rbd1 {[%clk 0:02:20.2]} 24... Rad8 {[%clk
0:04:15]} 25. Bh3 {[%clk 0:02:05.4]} 25... Bxh3 {[%clk 0:04:13.1]} 26. Kxh3
{[%clk 0:02:04.9]} 26... Rd3 {[%clk 0:04:10.9]} 27. Rxd3 {[%clk 0:01:57.6]}
27... exd3 {[%clk 0:04:10]} 28. Rd1 {[%clk 0:01:57]} 28... Rxe3 {[%clk
0:04:08.6]} 0-1

[Event "Live Chess"]
[Site "Chess.com"]
[Date "2023.05.21"]
[Round "-"]
[White "mammamiatwo"]
[Black "ItsNot_Jasper"]
[Result "0-1"]
[WhiteElo "1371"]
[BlackElo "1383"]
[TimeControl "300"]
[EndTime "3:48:43 PDT"]
[Termination "ItsNot_Jasper won by resignation"]

1. e4 {[%clk 0:04:57.9]} 1... c6 {[%clk 0:04:57.2]} 2. Qf3 {[%clk 0:04:56.3]}
2... d5 {[%clk 0:04:56.3]} 3. exd5 {[%clk 0:04:55.2]} 3... cxd5 {[%clk
0:04:56.2]} 4. c4 {[%clk 0:04:54.4]} 4... dxc4 {[%clk 0:04:54.8]} 5. Bxc4 {[%clk
0:04:54.3]} 5... Nf6 {[%clk 0:04:53.1]} 6. h3 {[%clk 0:04:53.1]} 6... e6 {[%clk
0:04:44.7]} 7. d3 {[%clk 0:04:50.9]} 7... Nc6 {[%clk 0:04:43.7]} 8. Bb3 {[%clk
0:04:48]} 8... Bb4+ {[%clk 0:04:42.8]} 9. Bd2 {[%clk 0:04:45.5]} 9... Bxd2+
{[%clk 0:04:41.8]} 10. Nxd2 {[%clk 0:04:43.5]} 10... Nd4 {[%clk 0:04:39.6]} 11.
Qg3 {[%clk 0:04:40.2]} 11... O-O {[%clk 0:04:34.9]} 12. Ngf3 {[%clk 0:04:36.5]}
12... Nxb3 {[%clk 0:04:33.7]} 13. Nxb3 {[%clk 0:04:33.1]} 13... Bd7 {[%clk
0:04:33.2]} 14. O-O {[%clk 0:04:30.8]} 14... Bc6 {[%clk 0:04:32]} 15. Rad1
{[%clk 0:04:25.6]} 15... Nh5 {[%clk 0:04:25.1]} 16. Qg4 {[%clk 0:04:16.9]} 16...
Nf6 {[%clk 0:04:21.4]} 17. Qf4 {[%clk 0:04:14.3]} 17... Rc8 {[%clk 0:04:13.7]}
18. Ne5 {[%clk 0:04:05.2]} 18... Qc7 {[%clk 0:04:10]} 19. Rfe1 {[%clk 0:03:59]}
19... Nd7 {[%clk 0:04:08.1]} 20. Qg3 {[%clk 0:03:54.5]} 20... Nxe5 {[%clk
0:04:05.6]} 21. Qxe5 {[%clk 0:03:50.6]} 21... Qxe5 {[%clk 0:04:04.1]} 22. Rxe5
{[%clk 0:03:48.9]} 22... Bd5 {[%clk 0:04:03.8]} 23. Ree1 {[%clk 0:03:38.7]}
23... Bxb3 {[%clk 0:04:00.9]} 24. axb3 {[%clk 0:03:38.6]} 24... Rc2 {[%clk
0:04:00.4]} 25. Rb1 {[%clk 0:03:35.9]} 25... Rfc8 {[%clk 0:03:58.5]} 26. Re4
{[%clk 0:03:22]} 26... a6 {[%clk 0:03:53.8]} 27. Rc4 {[%clk 0:03:16.5]} 27... b5
{[%clk 0:03:46.4]} 28. Rxc8+ {[%clk 0:03:12.6]} 28... Rxc8 {[%clk 0:03:44.9]}
29. f3 {[%clk 0:03:08]} 29... Rc2 {[%clk 0:03:43.7]} 30. Kf1 {[%clk 0:03:04.7]}
30... Kf8 {[%clk 0:03:42.3]} 31. Ke1 {[%clk 0:03:03]} 31... Rxg2 {[%clk
0:03:41]} 32. Ra1 {[%clk 0:02:55.7]} 32... Rxb2 {[%clk 0:03:38.2]} 33. Rxa6
{[%clk 0:02:54]} 33... Rxb3 {[%clk 0:03:37.6]} 34. Rd6 {[%clk 0:02:50.9]} 34...
Ke7 {[%clk 0:03:35.8]} 35. Rd4 {[%clk 0:02:49.4]} 35... Rb1+ {[%clk 0:03:33.3]}
36. Ke2 {[%clk 0:02:48.4]} 36... b4 {[%clk 0:03:32.8]} 37. Rh4 {[%clk
0:02:45.4]} 37... b3 {[%clk 0:03:31.7]} 38. Rxh7 {[%clk 0:02:43.8]} 38... b2
{[%clk 0:03:30.6]} 39. Rxg7 {[%clk 0:02:33.6]} 39... Ra1 {[%clk 0:03:29.5]} 0-1

[Event "Live Chess"]
[Site "Chess.com"]
[Date "2023.05.21"]
[Round "-"]
[White "ameetghasi100"]
[Black "JoeRoot66"]
[Result "1-0"]
[WhiteElo "2618"]
[BlackElo "1918"]
[TimeControl "300"]
[EndTime "3:48:50 PDT"]
[Termination "ameetghasi100 won by resignation"]

1. d4 {[%clk 0:04:58.9]} 1... d5 {[%clk 0:04:58.8]} 2. c4 {[%clk 0:04:58.8]}
2... e6 {[%clk 0:04:57.9]} 3. Nc3 {[%clk 0:04:58.7]} 3... Nf6 {[%clk 0:04:57.2]}
4. Nf3 {[%clk 0:04:58.6]} 4... Nbd7 {[%clk 0:04:56.1]} 5. h4 {[%clk 0:04:58.5]}
5... h6 {[%clk 0:04:51]} 6. Qc2 {[%clk 0:04:57.7]} 6... Be7 {[%clk 0:04:47.6]}
7. Bf4 {[%clk 0:04:55.6]} 7... c6 {[%clk 0:04:46]} 8. e3 {[%clk 0:04:52.3]} 8...
O-O {[%clk 0:04:43.3]} 9. g4 {[%clk 0:04:45.1]} 9... dxc4 {[%clk 0:03:53.5]} 10.
g5 {[%clk 0:04:41.7]} 10... Nd5 {[%clk 0:03:45.5]} 11. gxh6 {[%clk 0:04:35.2]}
11... Nxf4 {[%clk 0:03:35.8]} 12. exf4 {[%clk 0:04:35.1]} 12... gxh6 {[%clk
0:03:24.7]} 13. O-O-O {[%clk 0:04:32.6]} 13... b5 {[%clk 0:03:10.7]} 14. Ng5
{[%clk 0:04:30]} 14... Bxg5 {[%clk 0:03:01.8]} 15. hxg5 {[%clk 0:04:29.9]} 15...
Qc7 {[%clk 0:02:52.6]} 16. Ne2 {[%clk 0:04:11.7]} 16... f5 {[%clk 0:02:37.9]}
17. Rxh6 {[%clk 0:03:58.4]} 17... c5 {[%clk 0:02:27.8]} 18. Rxe6 {[%clk
0:03:49.9]} 18... Bb7 {[%clk 0:02:13.1]} 19. d5 {[%clk 0:03:48.6]} 19... Nb6
{[%clk 0:01:48.3]} 20. Bg2 {[%clk 0:03:39.7]} 20... Rad8 {[%clk 0:01:35.3]} 21.
d6 {[%clk 0:03:22.7]} 21... Qc8 {[%clk 0:01:34.4]} 22. Rg6+ {[%clk 0:03:19.6]}
22... Kh7 {[%clk 0:01:16.9]} 23. Bxb7 {[%clk 0:03:13.1]} 23... Qxb7 {[%clk
0:01:12.4]} 24. Rh6+ {[%clk 0:03:12.2]} 24... Kg7 {[%clk 0:01:11.3]} 25. Ng3
{[%clk 0:03:11.5]} 25... Qd7 {[%clk 0:00:57.7]} 26. Qc3+ {[%clk 0:03:08.7]}
26... Kg8 {[%clk 0:00:47.7]} 27. Qh8+ {[%clk 0:03:03.1]} 27... Kf7 {[%clk
0:00:45.1]} 28. Rf6+ {[%clk 0:03:03]} 28... Ke8 {[%clk 0:00:40]} 29. Re1+ {[%clk
0:03:02.9]} 1-0

[Event "Live Chess"]
[Site "Chess.com"]
[Date "2023.05.21"]
[Round "-"]
[White "KeithArkell"]
[Black "f4nomore"]
[Result "1-0"]
[WhiteElo "2500"]
[BlackElo "1416"]
[TimeControl "300"]
[EndTime "3:48:53 PDT"]
[Termination "KeithArkell won by resignation"]

1. d4 {[%clk 0:04:58.3]} 1... g6 {[%clk 0:04:59.9]} 2. Nf3 {[%clk 0:04:57.2]}
2... Bg7 {[%clk 0:04:59]} 3. c4 {[%clk 0:04:57]} 3... d6 {[%clk 0:04:58]} 4. Nc3
{[%clk 0:04:56.6]} 4... Nf6 {[%clk 0:04:56.1]} 5. g3 {[%clk 0:04:56]} 5... O-O
{[%clk 0:04:54.1]} 6. Bg2 {[%clk 0:04:53.3]} 6... Nc6 {[%clk 0:04:40.3]} 7. O-O
{[%clk 0:04:51.3]} 7... Bd7 {[%clk 0:04:36.5]} 8. h3 {[%clk 0:04:49]} 8... e5
{[%clk 0:04:33.5]} 9. dxe5 {[%clk 0:04:46.8]} 9... Nxe5 {[%clk 0:04:29.9]} 10.
Nxe5 {[%clk 0:04:43]} 10... dxe5 {[%clk 0:04:28.7]} 11. Bg5 {[%clk 0:04:41.2]}
11... Bc6 {[%clk 0:04:23.1]} 12. Bxc6 {[%clk 0:04:38.5]} 12... bxc6 {[%clk
0:04:20.8]} 13. Qxd8 {[%clk 0:04:36.9]} 13... Raxd8 {[%clk 0:04:18.9]} 14. Bxf6
{[%clk 0:04:35.2]} 14... Bxf6 {[%clk 0:04:16.9]} 15. Rad1 {[%clk 0:04:33.7]}
15... Rb8 {[%clk 0:04:14.3]} 16. b3 {[%clk 0:04:32.5]} 16... Rfe8 {[%clk
0:04:08.5]} 17. Rd7 {[%clk 0:04:30.8]} 17... e4 {[%clk 0:03:59.8]} 18. Na4
{[%clk 0:04:29.4]} 18... e3 {[%clk 0:03:54.2]} 19. f4 {[%clk 0:04:27.3]} 19...
Rb7 {[%clk 0:03:39.9]} 20. Rfd1 {[%clk 0:04:24.3]} 20... Kg7 {[%clk 0:03:38]}
21. Kg2 {[%clk 0:04:21.6]} 21... Re6 {[%clk 0:03:30.4]} 22. Nc5 {[%clk
0:04:19.8]} 22... Rd6 {[%clk 0:03:21.6]} 23. R1xd6 {[%clk 0:04:15.4]} 23... cxd6
{[%clk 0:03:18.5]} 24. Nxb7 {[%clk 0:04:14.7]} 1-0

[Event "Live Chess"]
[Site "Chess.com"]
[Date "2023.05.21"]
[Round "-"]
[White "WombatIn_A_Box"]
[Black "HadesLearmonth"]
[Result "0-1"]
[WhiteElo "570"]
[BlackElo "1184"]
[TimeControl "300"]
[EndTime "3:48:54 PDT"]
[Termination "HadesLearmonth won by checkmate"]

1. d4 {[%clk 0:04:53.7]} 1... d5 {[%clk 0:04:58.5]} 2. Qd3 {[%clk 0:04:48.3]}
2... Nf6 {[%clk 0:04:48.2]} 3. Qb5+ {[%clk 0:04:46.3]} 3... Bd7 {[%clk
0:04:46.1]} 4. Qd3 {[%clk 0:04:42.6]} 4... e6 {[%clk 0:04:41.9]} 5. f3 {[%clk
0:04:41.8]} 5... Nc6 {[%clk 0:04:39.7]} 6. e4 {[%clk 0:04:41]} 6... Nb4 {[%clk
0:04:38.7]} 7. Qb3 {[%clk 0:04:35.8]} 7... Be7 {[%clk 0:04:35.8]} 8. a3 {[%clk
0:04:35]} 8... Nc6 {[%clk 0:04:33.5]} 9. exd5 {[%clk 0:04:33.9]} 9... exd5
{[%clk 0:04:31.7]} 10. c4 {[%clk 0:04:30.6]} 10... dxc4 {[%clk 0:04:30.4]} 11.
Qxc4 {[%clk 0:04:28.6]} 11... O-O {[%clk 0:04:26.8]} 12. Be2 {[%clk 0:04:23.3]}
12... Be6 {[%clk 0:04:24.1]} 13. Qd3 {[%clk 0:04:19.8]} 13... b5 {[%clk
0:04:19.3]} 14. Nc3 {[%clk 0:04:18.7]} 14... Bc4 {[%clk 0:04:17.3]} 15. Qe3
{[%clk 0:04:12.9]} 15... Bxe2 {[%clk 0:04:15.3]} 16. Qxe2 {[%clk 0:04:10.9]}
16... Re8 {[%clk 0:04:14.5]} 17. Be3 {[%clk 0:04:06.4]} 17... Bd6 {[%clk
0:04:07.9]} 18. Nh3 {[%clk 0:04:05.8]} 18... Qb8 {[%clk 0:04:00.1]} 19. O-O
{[%clk 0:04:05.1]} 19... b4 {[%clk 0:03:58.7]} 20. axb4 {[%clk 0:04:03.3]} 20...
Qxb4 {[%clk 0:03:57.6]} 21. Ra4 {[%clk 0:03:59]} 21... Qb6 {[%clk 0:03:51.2]}
22. Nf4 {[%clk 0:03:48.8]} 22... Bxf4 {[%clk 0:03:49.3]} 23. Bxf4 {[%clk
0:03:47.4]} 23... Rxe2 {[%clk 0:03:47.8]} 24. Nxe2 {[%clk 0:03:44.9]} 24... Qxb2
{[%clk 0:03:42.7]} 25. d5 {[%clk 0:03:38.5]} 25... Qxe2 {[%clk 0:03:39.5]} 26.
Re4 {[%clk 0:03:35.3]} 26... Nxe4 {[%clk 0:03:36.9]} 27. fxe4 {[%clk 0:03:35.2]}
27... Nd4 {[%clk 0:03:33.2]} 28. Bg3 {[%clk 0:03:31.2]} 28... Re8 {[%clk
0:03:28.8]} 29. Rf2 {[%clk 0:03:27.8]} 29... Qxe4 {[%clk 0:03:22.7]} 30. d6
{[%clk 0:03:24.6]} 30... Qe1+ {[%clk 0:03:21.1]} 31. Rf1 {[%clk 0:03:20.8]}
31... Qc3 {[%clk 0:03:15.6]} 32. Bf2 {[%clk 0:03:15.9]} 32... cxd6 {[%clk
0:03:13.6]} 33. g3 {[%clk 0:03:13.1]} 33... Nf3+ {[%clk 0:03:12.1]} 34. Kg2
{[%clk 0:03:10.1]} 34... Re6 {[%clk 0:03:08.5]} 35. h4 {[%clk 0:03:08.2]} 35...
h6 {[%clk 0:03:07.1]} 36. Kh3 {[%clk 0:03:06.2]} 36... Qe5 {[%clk 0:03:00.4]}
37. Bxa7 {[%clk 0:03:02.5]} 37... Qf5+ {[%clk 0:02:58.1]} 38. Kg2 {[%clk
0:02:59.7]} 38... Nxh4+ {[%clk 0:02:56.4]} 39. Kh2 {[%clk 0:02:56.2]} 39... Qxf1
{[%clk 0:02:52.8]} 40. gxh4 {[%clk 0:02:52.8]} 40... Re2+ {[%clk 0:02:50.1]} 41.
Kg3 {[%clk 0:02:51.6]} 41... Qg2+ {[%clk 0:02:48.1]} 42. Kf4 {[%clk 0:02:50.4]}
42... Re4+ {[%clk 0:02:46.7]} 43. Kf5 {[%clk 0:02:46.4]} 43... Qg6# {[%clk
0:02:44.4]} 0-1

[Event "Live Chess"]
[Site "Chess.com"]
[Date "2023.05.21"]
[Round "-"]
[White "Doge_Dandolo"]
[Black "JoRoSaR"]
[Result "0-1"]
[WhiteElo "1862"]
[BlackElo "1699"]
[TimeControl "300"]
[EndTime "3:49:05 PDT"]
[Termination "JoRoSaR won by checkmate"]

1. Nf3 {[%clk 0:04:54.1]} 1... f5 {[%clk 0:04:58.9]} 2. d3 {[%clk 0:04:52.7]}
2... e6 {[%clk 0:04:58]} 3. e4 {[%clk 0:04:33.7]} 3... fxe4 {[%clk 0:04:56.2]}
4. dxe4 {[%clk 0:04:29.9]} 4... Nf6 {[%clk 0:04:55.6]} 5. Nc3 {[%clk 0:04:27]}
5... Bb4 {[%clk 0:04:53.9]} 6. Bd3 {[%clk 0:04:24.8]} 6... O-O {[%clk
0:04:51.9]} 7. O-O {[%clk 0:04:23.4]} 7... b6 {[%clk 0:04:50.4]} 8. Bd2 {[%clk
0:04:20.4]} 8... Bb7 {[%clk 0:04:49.3]} 9. Re1 {[%clk 0:04:19]} 9... d6 {[%clk
0:04:48.4]} 10. a3 {[%clk 0:04:16.8]} 10... Bxc3 {[%clk 0:04:47.2]} 11. Bxc3
{[%clk 0:04:15.4]} 11... Nbd7 {[%clk 0:04:46.7]} 12. Qd2 {[%clk 0:04:07.7]}
12... e5 {[%clk 0:04:45.7]} 13. Qe2 {[%clk 0:03:54.8]} 13... Qe8 {[%clk
0:04:42.5]} 14. Bd2 {[%clk 0:03:53]} 14... Qh5 {[%clk 0:04:40.8]} 15. h3 {[%clk
0:03:47.1]} 15... Nc5 {[%clk 0:04:35.6]} 16. Rac1 {[%clk 0:03:43.5]} 16... Nxd3
{[%clk 0:04:34.5]} 17. cxd3 {[%clk 0:03:42.2]} 17... c5 {[%clk 0:04:33.9]} 18.
Be3 {[%clk 0:03:29.1]} 18... Bc8 {[%clk 0:04:32.9]} 19. Nd2 {[%clk 0:03:26.3]}
19... Qg6 {[%clk 0:04:31.5]} 20. Kh2 {[%clk 0:03:18.2]} 20... Nh5 {[%clk
0:04:27.1]} 21. Nc4 {[%clk 0:03:09.8]} 21... Nf4 {[%clk 0:04:25.2]} 22. Bxf4
{[%clk 0:03:08.1]} 22... Rxf4 {[%clk 0:04:24.3]} 23. Ne3 {[%clk 0:03:04.1]}
23... Be6 {[%clk 0:04:21.1]} 24. b4 {[%clk 0:02:50.8]} 24... Raf8 {[%clk
0:04:18.5]} 25. f3 {[%clk 0:02:48.8]} 25... Rh4 {[%clk 0:04:13.3]} 26. Rg1
{[%clk 0:02:42.5]} 26... Qh6 {[%clk 0:04:11]} 27. Nf5 {[%clk 0:02:34]} 27...
Bxf5 {[%clk 0:04:09.7]} 28. exf5 {[%clk 0:02:33.1]} 28... Rxf5 {[%clk 0:04:09]}
29. bxc5 {[%clk 0:02:32.1]} 29... bxc5 {[%clk 0:04:07.9]} 30. Rc4 {[%clk
0:02:30]} 30... Rff4 {[%clk 0:04:01.3]} 31. Rb1 {[%clk 0:02:21.3]} 31... Rxc4
{[%clk 0:03:59.2]} 32. dxc4 {[%clk 0:02:18.9]} 32... Qe6 {[%clk 0:03:52.7]} 33.
Rb8+ {[%clk 0:02:07.7]} 33... Kf7 {[%clk 0:03:51.3]} 34. Rb7+ {[%clk 0:02:06.6]}
34... Kf6 {[%clk 0:03:50.4]} 35. Qf2 {[%clk 0:02:00.6]} 35... Rxc4 {[%clk
0:03:46.3]} 36. Qg3 {[%clk 0:01:55.7]} 36... g6 {[%clk 0:03:42.6]} 37. Rxh7
{[%clk 0:01:49.6]} 37... a5 {[%clk 0:03:41.8]} 38. Rh6 {[%clk 0:01:48]} 38...
Qf5 {[%clk 0:03:40.4]} 39. h4 {[%clk 0:01:41.5]} 39... Ra4 {[%clk 0:03:39.2]}
40. h5 {[%clk 0:01:40.6]} 40... Rxa3 {[%clk 0:03:29.1]} 41. Rxg6+ {[%clk
0:01:39]} 41... Ke7 {[%clk 0:03:28.6]} 42. Rg7+ {[%clk 0:01:37.1]} 42... Ke6
{[%clk 0:03:27.4]} 43. Rg6+ {[%clk 0:01:34.7]} 43... Kd5 {[%clk 0:03:26.3]} 44.
h6 {[%clk 0:01:30.8]} 44... Ra4 {[%clk 0:03:21.3]} 45. Rg5 {[%clk 0:01:28.4]}
45... Qf6 {[%clk 0:03:17.5]} 46. Rh5 {[%clk 0:01:22.8]} 46... c4 {[%clk
0:03:14.3]} 47. f4 {[%clk 0:01:17.2]} 47... c3 {[%clk 0:03:11.1]} 48. fxe5
{[%clk 0:01:09.5]} 48... dxe5 {[%clk 0:03:10.1]} 49. Qd3+ {[%clk 0:01:05]} 49...
Rd4 {[%clk 0:03:07.6]} 50. Qxc3 {[%clk 0:01:02.5]} 50... Rh4+ {[%clk 0:03:06.9]}
51. Rxh4 {[%clk 0:01:01]} 51... Qxh4+ {[%clk 0:03:06.8]} 52. Qh3 {[%clk
0:00:58.8]} 52... Qf4+ {[%clk 0:03:06.3]} 53. Qg3 {[%clk 0:00:57.9]} 53... Qxh6+
{[%clk 0:03:05.1]} 54. Qh3 {[%clk 0:00:56.6]} 54... Qxh3+ {[%clk 0:03:04.1]} 55.
Kxh3 {[%clk 0:00:55.8]} 55... a4 {[%clk 0:03:03.8]} 56. g4 {[%clk 0:00:55.2]}
56... a3 {[%clk 0:03:03.4]} 57. g5 {[%clk 0:00:54.9]} 57... a2 {[%clk 0:03:03]}
58. g6 {[%clk 0:00:54.6]} 58... a1=Q {[%clk 0:03:02.3]} 59. g7 {[%clk
0:00:54.3]} 59... Qa8 {[%clk 0:03:01.4]} 60. g8=Q+ {[%clk 0:00:53]} 60... Qxg8
{[%clk 0:03:00.4]} 61. Kh4 {[%clk 0:00:52.7]} 61... e4 {[%clk 0:02:59.9]} 62.
Kh5 {[%clk 0:00:52.2]} 62... e3 {[%clk 0:02:59.8]} 63. Kh6 {[%clk 0:00:51.8]}
63... e2 {[%clk 0:02:59.7]} 64. Kh5 {[%clk 0:00:50.9]} 64... e1=R {[%clk
0:02:59.6]} 65. Kh4 {[%clk 0:00:50.4]} 65... Rh1# {[%clk 0:02:59.4]} 0-1

[Event "Live Chess"]
[Site "Chess.com"]
[Date "2023.05.21"]
[Round "-"]
[White "RoaringKnights"]
[Black "Missedidea"]
[Result "0-1"]
[WhiteElo "1074"]
[BlackElo "1836"]
[TimeControl "300"]
[EndTime "3:49:28 PDT"]
[Termination "Missedidea won by checkmate"]

1. e4 {[%clk 0:04:56.6]} 1... c5 {[%clk 0:04:57.6]} 2. Nf3 {[%clk 0:04:54.9]}
2... d6 {[%clk 0:04:56.5]} 3. Bc4 {[%clk 0:04:49.6]} 3... e6 {[%clk 0:04:52.2]}
4. e5 {[%clk 0:04:48.3]} 4... d5 {[%clk 0:04:50.6]} 5. Bb5+ {[%clk 0:04:46.9]}
5... Bd7 {[%clk 0:04:49.7]} 6. Bxd7+ {[%clk 0:04:45.7]} 6... Nxd7 {[%clk
0:04:48]} 7. d4 {[%clk 0:04:45]} 7... cxd4 {[%clk 0:04:45.9]} 8. Nxd4 {[%clk
0:04:44.3]} 8... Nxe5 {[%clk 0:04:42.6]} 9. Qe2 {[%clk 0:04:42.7]} 9... Bd6
{[%clk 0:04:33.6]} 10. Nf3 {[%clk 0:04:39.8]} 10... Nc6 {[%clk 0:04:29]} 11. Bg5
{[%clk 0:04:35.1]} 11... Nf6 {[%clk 0:04:23.8]} 12. Nc3 {[%clk 0:04:33.8]} 12...
h6 {[%clk 0:04:20.8]} 13. Bh4 {[%clk 0:04:32.2]} 13... g5 {[%clk 0:04:16.4]} 14.
Bg3 {[%clk 0:04:30.2]} 14... g4 {[%clk 0:04:06.6]} 15. Nd2 {[%clk 0:04:24.7]}
15... d4 {[%clk 0:03:47.7]} 16. Nce4 {[%clk 0:04:20.7]} 16... Be7 {[%clk
0:03:29.3]} 17. Nxf6+ {[%clk 0:04:15.8]} 17... Bxf6 {[%clk 0:03:27.2]} 18. O-O-O
{[%clk 0:04:13.5]} 18... h5 {[%clk 0:03:22.2]} 19. f3 {[%clk 0:04:08.5]} 19...
Qa5 {[%clk 0:03:11]} 20. a3 {[%clk 0:04:05.2]} 20... O-O-O {[%clk 0:03:05.4]}
21. Qc4 {[%clk 0:03:55.8]} 21... Rd5 {[%clk 0:02:56.1]} 22. Nb3 {[%clk 0:03:49]}
22... Qb6 {[%clk 0:02:50.8]} 23. Rhe1 {[%clk 0:03:40.5]} 23... Rhd8 {[%clk
0:02:44.1]} 24. Qd3 {[%clk 0:03:34]} 24... a5 {[%clk 0:02:39.9]} 25. Qh7 {[%clk
0:03:31.8]} 25... a4 {[%clk 0:02:29.1]} 26. Na1 {[%clk 0:03:27.5]} 26... d3
{[%clk 0:02:25.6]} 27. Qxf7 {[%clk 0:03:13.2]} 27... Qxb2+ {[%clk 0:02:23.3]}
28. Kd2 {[%clk 0:03:10.3]} 28... dxc2+ {[%clk 0:02:20.7]} 29. Ke2 {[%clk
0:03:08.2]} 29... cxd1=Q+ {[%clk 0:02:18.8]} 30. Kf1 {[%clk 0:03:06.2]} 30...
Qxe1+ {[%clk 0:02:10.6]} 31. Bxe1 {[%clk 0:03:04.5]} 31... Bd4 {[%clk
0:01:58.6]} 32. g3 {[%clk 0:03:01.4]} 32... Qb5+ {[%clk 0:01:54.1]} 33. Kg2
{[%clk 0:03:00.1]} 33... Qe2+ {[%clk 0:01:51.8]} 34. Kh1 {[%clk 0:02:58.6]}
34... Qxf3+ {[%clk 0:01:50]} 35. Qxf3 {[%clk 0:02:56.7]} 35... gxf3 {[%clk
0:01:49.2]} 36. Nc2 {[%clk 0:02:54.6]} 36... Ba7 {[%clk 0:01:46]} 37. Bc3 {[%clk
0:02:50.5]} 37... Rd1+ {[%clk 0:01:43.6]} 38. Ne1 {[%clk 0:02:47.8]} 38... f2
{[%clk 0:01:41.3]} 39. Kg2 {[%clk 0:02:44.2]} 39... fxe1=Q {[%clk 0:01:39.2]}
40. Bxe1 {[%clk 0:02:43]} 40... Rxe1 {[%clk 0:01:38]} 41. Kh3 {[%clk 0:02:42]}
41... Bg1 {[%clk 0:01:33]} 42. Kh4 {[%clk 0:02:40.1]} 42... Rd5 {[%clk
0:01:30.2]} 43. h3 {[%clk 0:02:37.8]} 43... Re4+ {[%clk 0:01:27.5]} 44. g4
{[%clk 0:02:36.8]} 44... Bf2# {[%clk 0:01:25.8]} 0-1